bitfinex/quotes_ETHUSD_20241105
["timestamp","ask_amount","ask_price","bid_price","bid_amount"]
[1730847983208,0.09375503,2435.7,2435.6,0.0597488]
[1730847983456,5.226504,2435.8,2435.6,0.0597488]
[1730847983735,4.19939321,2435.7,2435.6,0.0597488]
[1730847984030,0.09380321,2435.7,2435.6,0.0597488]
[1730847984317,7.10526,2435.9,2435.6,0.0597488]
[1730847984483,0.09375503,2435.7,2435.6,0.0597488]
[1730847984684,3.0,2436.2,2435.6,4.1654588]
[1730847984877,0.09380321,2435.7,2435.6,0.0597488]
[1730847985111,4.10517,2436.0,2435.6,0.0597488]
[1730847985279,0.09364935,2435.7,2435.6,0.0597488]
[1730847985478,3.0,2436.1,2435.6,0.0597488]
[1730847985669,0.09371482,2435.7,2435.6,0.0597488]
[1730847985898,0.710489,2436.0,2435.6,4.1654188]
[1730847986099,0.09362526,2435.7,2435.6,4.9615188]
[1730847986271,3.0,2436.1,2435.7,4.10545]
[1730847986476,3.0,2436.1,2435.6,4.9615188]
[1730847986477,4.1046,2436.3,2435.8,4.10528]
[1730847987812,11.19829254,2436.4,2435.9,4.10525]
[1730847988011,10.40929254,2436.4,2436.0,0.7735]
[1730847988817,0.094346,2436.3,2436.0,0.7735]
[1730847989810,0.094346,2436.3,2436.0,4.87849]
[1730847990014,9.10424,2436.5,2436.1,4.10491]
[1730847990216,0.09425546,2436.2,2436.1,4.10491]
[1730847990520,4.1042,2436.6,2436.0,0.7735]
[1730847990674,0.09435062,2436.2,2436.1,4.10478]
[1730847990902,0.7549,2437.0,2436.1,0.7735]
[1730847991242,9.10328,2437.1,2436.6,0.7735]
[1730847991669,0.09516124,2437.0,2436.6,0.7735]
[1730847991945,0.09516124,2437.0,2436.7,4.10382]
[1730847992238,4.10326,2437.1,2436.6,0.7735]
[1730847992547,0.09555324,2436.9,2436.6,0.7735]
[1730847992701,0.09522827,2437.0,2436.6,4.87749]
[1730847992902,4.10325,2437.1,2436.6,4.87749]
[1730847993228,5.0,2437.4,2436.8,4.10374]
[1730847993229,0.09538017,2437.0,2436.8,4.10374]
[1730847993401,9.10274,2437.4,2436.9,4.10357]
[1730847993604,5.0,2437.4,2437.0,4.10337]
[1730847993804,5.0,2437.4,2437.1,0.7735]
[1730847994323,9.10273,2437.4,2437.1,0.7735]
[1730847994530,5.0,2437.4,2437.1,0.7735]
[1730847995622,9.10273,2437.4,2437.1,0.7735]
[1730847995826,9.10273,2437.4,2435.6,1.73466145]
[1730847995827,4.85828,2437.1,2436.5,0.7735]
[1730847996138,0.7549,2437.1,2436.6,4.10399]
[1730847996344,0.09571157,2437.0,2436.6,8.20794]
[1730847996513,0.09571157,2437.0,2436.7,4.10388]
[1730847996724,8.20622,2437.2,2436.7,4.10388]
[1730847996916,4.10327,2437.1,2436.6,4.10395]
[1730847997101,0.09582614,2437.1,2436.6,4.10395]
[1730847997306,5.09582614,2437.1,2436.5,0.7735]
[1730847997541,5.09582614,2437.1,2436.3,1.13157283]
[1730847997542,4.10387,2436.8,2436.3,1.13157283]
[1730847997724,4.10357,2436.9,2436.3,0.7735]
[1730847997926,0.09221296,2436.8,2436.4,4.10441]
[1730847998869,0.09221296,2436.8,2436.3,0.85558402]
[1730847999019,0.09221296,2436.8,2436.7,0.7735]
[1730847999225,4.10336,2437.1,2436.7,0.7735]
[1730847999570,5.299488,2437.1,2436.7,0.7735]
[1730847999733,0.08880521,2437.0,2436.7,0.7735]
[1730848000060,0.08880521,2437.0,2436.8,4.10373]
[1730848000460,11.20605,2437.3,2436.8,4.10373]
[1730848000647,0.08871472,2436.9,2436.8,4.10373]
[1730848000843,4.10302,2437.3,2436.8,5.001764]
[1730848001160,0.7549,2437.8,2437.4,4.1026]
[1730848001380,4.10186,2438.0,2437.5,4.10245]
[1730848001532,4.10186,2438.0,2437.4,0.7735]
[1730848001933,5.7649,2438.1,2437.4,0.7735]
[1730848001934,8.20422,2437.8,2437.4,0.7735]
[1730848002155,8.20423,2437.8,2437.4,0.7735]
[1730848002557,4.1019,2437.9,2437.4,4.87622]
[1730848002879,4.1019,2437.9,2437.4,0.7735]
[1730848002880,4.10214,2437.8,2437.4,0.7735]
[1730848003239,0.08982336,2437.7,2437.4,0.7735]
[1730848003438,4.10226,2437.7,2437.4,0.7735]
[1730848003636,0.08973293,2437.6,2437.4,0.7735]
[1730848004053,4.19212293,2437.6,2437.4,0.7735]
[1730848004462,0.08973293,2437.6,2437.4,0.7735]
[1730848004969,1.34123222,2437.6,2437.1,0.7604]
[1730848005138,4.10275,2437.4,2437.1,0.7604]
[1730848005343,0.09012276,2437.3,2437.1,0.7604]
[1730848005546,4.19303276,2437.3,2437.1,0.7604]
[1730848005858,0.09012276,2437.3,2437.1,0.7604]
[1730848006380,4.10291,2437.3,2437.1,0.7604]
[1730848006586,0.08689373,2437.2,2437.1,0.7604]
[1730848006782,0.08689373,2437.2,2436.7,4.10377]
[1730848006783,4.10306,2437.2,2436.8,0.7604]
[1730848006946,4.18951879,2437.2,2436.8,0.7604]
[1730848007377,4.18951879,2437.2,2436.8,4.86406]
[1730848007378,0.08645879,2437.2,2436.8,4.86406]
[1730848007541,4.1029,2437.3,2436.8,4.86406]
[1730848007752,0.08645879,2437.2,2436.8,4.86406]
[1730848008065,4.1029,2437.3,2436.8,4.86406]
[1730848008369,4.18955287,2437.2,2436.8,0.7604]
[1730848008560,4.10333,2437.1,2436.8,0.7604]
[1730848008758,4.18972239,2437.1,2436.8,0.7604]
[1730848009748,8.29308239,2437.1,2436.8,0.7604]
[1730848009950,4.10351,2437.0,2436.5,4.86456]
[1730848010186,0.08608105,2436.9,2436.5,0.7604]
[1730848010397,4.10365,2436.9,2436.5,0.7604]
[1730848010565,0.08599055,2436.8,2436.5,0.7604]
[1730848012364,4.18974055,2436.8,2436.5,0.7604]
[1730848013296,0.08599055,2436.8,2436.5,0.7604]
[1730848013458,0.08599055,2436.8,2436.5,4.8645]
[1730848013657,4.1034,2437.0,2436.5,5.35095]
[1730848013983,4.1034,2437.0,2436.5,1.24685]
[1730848013984,4.10361,2436.9,2436.5,1.24685]
[1730848014186,4.1896479,2436.9,2436.5,0.7604]
[1730848014390,4.1896479,2436.9,2436.5,4.86463]
[1730848015294,0.0860379,2436.9,2436.5,4.86463]
[1730848015665,4.1896079,2436.9,2436.5,4.86463]
[1730848016992,0.0860379,2436.9,2436.5,0.7604]
[1730848017202,0.0860379,2436.9,2436.5,4.86461]
[1730848017203,4.1896279,2436.9,2436.5,4.86461]
[1730848017506,4.1896279,2436.9,2436.5,0.7604]
[1730848019703,4.10381,2436.8,2436.5,0.7604]
[1730848020072,0.08588297,2436.7,2436.5,0.7604]
[1730848020505,4.52255279,2436.9,2436.4,0.35937789]
[1730848020506,4.10424,2436.5,2436.4,0.35937789]
[1730848020811,4.10424,2436.5,2435.5,0.56415671]
[1730848020812,4.18991553,2436.5,2436.1,0.75]
[1730848021107,4.10467,2436.3,2436.1,0.75]
[1730848021303,4.10467,2436.3,2436.2,0.35964891]
[1730848021467,4.10467,2436.3,2436.1,0.75]
[1730848021989,4.10492,2436.1,2435.9,0.35968977]
[1730848022302,4.10492,2436.1,2435.7,0.75]
[1730848022303,4.10492,2436.1,2435.8,0.35968977]
[1730848023065,0.08186346,2436.0,2435.8,0.35968977]
[1730848023268,0.08186346,2436.0,2435.7,1.10968977]
[1730848024678,4.10542,2435.8,2435.7,0.35968977]
[1730848024879,4.10526,2435.9,2435.6,0.0597488]
[1730848025089,0.08156057,2435.8,2435.6,0.0597488]
[1730848025428,0.08156057,2435.8,2435.7,0.75]
[1730848025580,5.0,2436.5,2435.7,0.75]
[1730848025781,0.08135178,2435.8,2435.7,4.85559]
[1730848026089,4.10469,2436.3,2435.7,0.75]
[1730848026291,0.08135178,2435.8,2435.7,0.75]
[1730848026614,0.0813036,2435.8,2435.7,0.75]
[1730848026774,4.10475,2436.2,2435.7,4.85559]
[1730848026976,4.186514,2436.1,2435.7,1.66031048]
[1730848027273,4.1051,2436.0,2435.7,0.75]
[1730848027487,4.18380734,2436.0,2435.7,0.75]
[1730848027703,0.07870734,2436.0,2435.7,4.85559]
[1730848028013,0.07870734,2436.0,2435.7,4.8555]
[1730848028168,4.93571,2436.4,2435.7,4.85555]
[1730848028369,4.10484,2436.2,2435.7,4.85555]
[1730848028565,8.28826716,2436.3,2435.8,4.10535]
[1730848028806,4.10475,2436.2,2435.8,4.10535]
[1730848028971,4.18360356,2436.2,2435.8,4.10535]
[1730848029376,4.18360356,2436.2,2435.7,4.85559]
[1730848029685,4.10526,2435.9,2435.7,0.75]
[1730848030008,0.07850462,2435.8,2435.6,4.1654888]
[1730848030205,8.21005,2436.1,2435.6,4.1654888]
[1730848030503,0.07841404,2435.7,2435.6,4.1654888]
[1730848030702,4.10511,2436.0,2435.6,0.0597488]
[1730848030871,0.07843813,2435.7,2435.6,0.0597488]
[1730848031071,4.10501,2436.1,2435.6,4.1655088]
[1730848031296,0.07843813,2435.7,2435.6,4.1655088]
[1730848031464,4.10501,2436.1,2435.6,4.1655088]
[1730848031672,0.07843813,2435.7,2435.6,0.0597488]
[1730848032312,4.10511,2436.0,2435.6,4.1655088]
[1730848032479,0.07843813,2435.7,2435.6,0.0597488]
[1730848032685,5.02181927,2436.1,2435.6,4.1655088]
[1730848032893,0.07850789,2435.7,2435.6,4.9211088]
[1730848033069,8.20903,2436.4,2435.9,4.10516]
[1730848033269,4.10458,2436.3,2435.7,4.86114]
[1730848033469,4.10458,2436.3,2435.7,8.96665]
[1730848033674,4.10458,2436.3,2435.8,4.10533]
[1730848034872,0.7758,2436.2,2435.7,4.10544]
[1730848035217,4.10458,2436.3,2435.8,4.10535]
[1730848035570,4.10458,2436.3,2435.9,0.7557]
[1730848035768,0.07891254,2436.2,2435.9,4.86081]
[1730848036109,4.10441,2436.4,2435.9,1.652316]
[1730848036413,4.10434,2436.5,2435.9,0.7557]
[1730848036414,4.1046,2436.3,2435.9,0.7557]
[1730848036714,4.10442,2436.4,2435.9,4.86095]
[1730848037816,4.10462,2436.3,2435.9,0.7557]
[1730848038167,4.10462,2436.3,2435.9,0.75473691]
[1730848038613,11.20839,2436.6,2436.0,4.10493]
[1730848038906,4.10443,2436.4,2436.0,4.10493]
[1730848039527,0.07908823,2436.3,2436.0,4.10493]
[1730848041730,0.07908823,2436.3,2435.9,0.75473691]
[1730848042028,0.07908823,2436.3,2435.9,4.85998691]
[1730848042835,0.07908823,2436.3,2435.9,0.75473691]
[1730848043035,0.07908823,2436.3,2436.0,4.10506]
[1730848043937,0.07908823,2436.3,2436.1,4.18701502]
[1730848044095,0.07908823,2436.3,2436.2,4.10475]
[1730848044297,4.10376,2436.8,2436.3,4.86019]
[1730848044999,4.10376,2436.8,2436.3,0.7557]
[1730848045000,4.10399,2436.7,2436.3,0.7557]
[1730848045409,4.10376,2436.8,2436.3,4.86027]
[1730848045732,4.10319,2437.2,2436.7,4.10383]
[1730848045943,0.7758,2437.3,2436.5,4.85983]
[1730848046115,4.10331,2437.1,2436.6,4.10403]
[1730848046301,4.10331,2437.1,2436.5,4.85983]
[1730848046497,4.10331,2437.1,2436.6,4.10407]
[1730848047315,4.1035,2437.0,2436.5,4.85983]
[1730848047656,8.20665,2437.1,2436.5,8.96396]
[1730848047834,0.07994321,2436.9,2436.5,4.85983]
[1730848048151,8.20665,2437.1,2436.5,4.85983]
[1730848048359,0.07985272,2436.8,2436.5,4.85983]
[1730848048568,4.10344,2437.0,2436.5,4.85983]
[1730848048715,0.07982325,2436.7,2436.5,4.85983]
[1730848048911,4.10344,2437.0,2436.5,4.85983]
[1730848049113,0.07971094,2436.6,2436.5,4.85983]
[1730848049446,0.07971094,2436.6,2436.2,4.10472]
[1730848049829,0.07971094,2436.6,2436.3,4.46374962]
[1730848050036,4.87511,2436.8,2436.3,4.10453]
[1730848050356,0.07978174,2436.5,2436.3,4.1045]
[1730848050535,4.87511,2436.8,2436.3,4.10449]
[1730848050731,0.07969121,2436.4,2436.3,4.10449]
[1730848051063,0.07969121,2436.4,2436.2,4.10467]
[1730848051236,4.10393,2436.7,2436.3,4.10455]
[1730848051420,0.07960068,2436.3,2436.2,4.10467]
[1730848051627,4.10409,2436.6,2436.2,4.10467]
[1730848051857,0.07960068,2436.3,2436.2,4.10467]
[1730848052034,4.10409,2436.6,2436.2,4.10467]
[1730848052255,0.07952843,2436.3,2436.1,0.8173]
[1730848052568,0.7713,2436.1,2435.5,0.8173]
[1730848052768,4.10548,2435.8,2435.6,0.41909766]
[1730848052920,4.10548,2435.8,2435.6,0.0597488]
[1730848053260,0.07892632,2435.7,2435.6,0.0597488]
[1730848053565,4.10559,2435.7,2435.6,0.0597488]
[1730848053726,5.77684753,2435.7,2435.6,0.0597488]
[1730848054623,8.77684753,2435.7,2435.6,0.0597488]
[1730848057368,13.77684753,2435.7,2435.6,0.0597488]
[1730848058779,7.18444453,2435.7,2435.6,0.0597488]
[1730848058980,12.95574453,2435.7,2435.6,0.0597488]
[1730848059697,7.95574453,2435.7,2435.6,0.0597488]
[1730848061249,0.07885453,2435.7,2435.6,0.0597488]
[1730848061590,4.10544,2435.8,2435.6,0.0597488]
[1730848061794,4.10518,2436.0,2435.6,0.0597488]
[1730848061795,0.0781157,2435.7,2435.6,0.0597488]
[1730848062143,4.10485,2436.2,2435.6,0.8770488]
[1730848062144,4.1051,2436.0,2435.6,0.8770488]
[1730848062369,0.07809055,2435.7,2435.6,0.8770488]
[1730848062554,4.88586,2435.8,2435.6,0.0597488]
[1730848062787,0.07828307,2435.7,2435.6,0.0597488]
[1730848063162,4.10556,2435.8,2435.6,0.0597488]
[1730848063392,0.07829757,2435.7,2435.6,0.0597488]
[1730848063563,5.01282633,2435.7,2435.6,0.0597488]
[1730848063769,4.93452876,2435.7,2435.6,0.0597488]
[1730848063973,5.79301601,2435.7,2435.6,0.0597488]
[1730848064159,10.79301601,2435.7,2435.6,0.0597488]
[1730848064356,13.79301601,2435.7,2435.6,0.0597488]
[1730848064860,8.01271601,2435.7,2435.6,0.0597488]
[1730848069198,5.01271601,2435.7,2435.6,0.0597488]
[1730848073615,4.18377725,2435.7,2435.6,0.0597488]
[1730848077383,0.07818725,2435.7,2435.6,0.0597488]
[1730848077771,4.1055,2435.8,2435.6,0.0597488]
[1730848078750,4.10527,2435.9,2435.6,0.0597488]
[1730848080655,4.10521,2436.0,2435.6,0.0597488]
[1730848080860,0.07845009,2435.8,2435.6,0.0597488]
[1730848081066,5.0,2436.5,2435.9,4.10522]
[1730848081270,4.10467,2436.3,2435.9,0.7542]
[1730848081690,0.07870108,2436.2,2435.9,0.7542]
[1730848081839,4.10417,2436.6,2435.9,5.345412]
[1730848082038,4.10437,2436.5,2435.9,5.345412]
[1730848082239,0.8089,2436.3,2435.7,1.32898924]
[1730848082441,4.10502,2436.1,2435.7,0.7542]
[1730848082675,0.07860494,2436.0,2435.7,1.11335709]
[1730848083187,0.07860494,2436.0,2435.7,0.7542]
[1730848083536,4.10492,2436.1,2435.7,0.7542]
[1730848083737,0.07864753,2435.9,2435.7,0.7542]
[1730848084081,4.10492,2436.1,2435.7,0.7542]
[1730848084258,0.07855696,2435.8,2435.7,0.7542]
[1730848084639,4.10492,2436.1,2435.7,0.7542]
[1730848084858,0.07855696,2435.8,2435.7,0.7542]
[1730848085070,4.10487,2436.2,2435.7,4.85978]
[1730848085304,4.10413,2436.6,2436.0,4.10498]
[1730848085455,5.0,2436.9,2436.1,4.85901]
[1730848085856,4.10374,2436.8,2436.1,0.7542]
[1730848086155,4.1036,2436.9,2436.4,0.7542]
[1730848086352,8.20796,2436.7,2436.4,0.7542]
[1730848086575,4.10392,2436.7,2436.4,0.7542]
[1730848086807,9.028102,2436.9,2436.4,0.7542]
[1730848086970,0.820702,2436.9,2436.4,0.7542]
[1730848087174,4.104,2436.7,2436.4,0.7542]
[1730848087993,8.20805,2436.7,2436.4,0.7542]
[1730848088185,0.07672733,2436.6,2436.4,0.7542]
[1730848088562,4.10404,2436.7,2436.4,0.7542]
[1730848088834,4.10325,2437.1,2436.4,4.85861]
[1730848088835,0.07663681,2436.5,2436.4,4.85861]
[1730848088995,4.1036,2436.9,2436.4,5.35266977]
[1730848089203,0.07673297,2436.5,2436.4,4.8586]
[1730848089371,4.1034,2437.0,2436.4,0.7542]
[1730848089569,0.07668481,2436.5,2436.4,0.7542]
[1730848089808,4.10376,2436.8,2436.4,0.7542]
[1730848089961,0.07668481,2436.5,2436.4,0.7542]
[1730848090162,4.10376,2436.8,2436.4,0.7542]
[1730848090406,0.07668481,2436.5,2436.4,0.7542]
[1730848090555,4.10376,2436.8,2436.4,0.7542]
[1730848090773,0.07670889,2436.5,2436.4,4.85851]
[1730848090968,4.1034,2437.0,2436.4,5.83688904]
[1730848091261,0.07673297,2436.5,2436.4,4.8586]
[1730848091465,4.10368,2436.9,2436.4,4.8586]
[1730848091801,4.10415,2436.6,2436.0,0.7542]
[1730848091957,4.1045,2436.4,2436.0,0.7542]
[1730848092157,0.88592859,2436.8,2436.2,4.10462]
[1730848092158,0.07692754,2436.5,2436.2,4.10462]
[1730848092371,4.104,2436.7,2436.2,4.10462]
[1730848092620,0.07683701,2436.4,2436.1,4.10492]
[1730848092842,4.10428,2436.5,2436.0,4.85927]
[1730848093128,4.18125701,2436.4,2436.0,0.7542]
[1730848093505,0.07683701,2436.4,2436.0,0.7542]
[1730848093715,0.07683701,2436.4,2436.1,0.485932]
[1730848093907,0.07683701,2436.4,2436.2,4.90084]
[1730848094196,4.10391,2436.7,2436.2,4.90084]
[1730848094398,0.07677708,2436.3,2436.2,4.90084]
[1730848094914,4.10391,2436.7,2436.2,4.90084]
[1730848095108,0.07677708,2436.3,2436.2,0.7961]
[1730848095425,4.10442,2436.4,2436.2,0.7961]
[1730848095618,0.07677708,2436.3,2436.2,0.7961]
[1730848095820,0.07677708,2436.3,2436.2,4.90085]
[1730848096422,8.20799,2436.7,2436.2,4.90085]
[1730848096566,0.07677708,2436.3,2436.2,4.90085]
[1730848096762,4.10412,2436.6,2436.2,4.90085]
[1730848097000,0.07677708,2436.3,2436.2,0.7961]
[1730848097611,4.10559,2435.7,2435.6,0.0597488]
[1730848097906,4.516149,2435.7,2435.6,0.0597488]
[1730848098063,4.18176691,2435.7,2435.6,0.0597488]
[1730848098385,7.94016691,2435.7,2435.6,0.0597488]
[1730848102100,4.18176691,2435.7,2435.6,0.0597488]
[1730848103491,0.07617691,2435.7,2435.6,0.0597488]
[1730848103805,4.10545,2435.8,2435.6,0.0597488]
[1730848103962,0.07585078,2435.7,2435.6,0.0597488]
[1730848104167,4.10545,2435.8,2435.6,0.0597488]
[1730848104392,0.07587284,2435.7,2435.6,0.0597488]
[1730848104805,4.10545,2435.8,2435.6,0.0597488]
[1730848105000,0.07596108,2435.7,2435.6,0.0597488]
[1730848105310,4.10545,2435.8,2435.6,0.0597488]
[1730848105507,4.10516,2436.0,2435.6,0.8558488]
[1730848105712,0.07602445,2435.7,2435.6,0.8558488]
[1730848106201,4.10526,2435.9,2435.6,0.8558488]
[1730848106414,0.07577955,2435.7,2435.6,0.8558488]
[1730848106578,4.10516,2436.0,2435.6,0.8558488]
[1730848106781,0.07563845,2435.7,2435.6,0.8558488]
[1730848107079,4.10487,2436.2,2435.6,1.76261268]
[1730848107281,4.10487,2436.2,2435.6,0.8558488]
[1730848107497,4.10517,2436.0,2435.6,0.8558488]
[1730848107816,4.86298,2436.3,2435.6,0.0597488]
[1730848108178,4.10521,2436.0,2435.6,0.0597488]
[1730848108579,4.10494,2436.1,2435.6,4.1654888]
[1730848108821,4.10517,2436.0,2435.6,0.0597488]
[1730848109916,0.07621652,2435.9,2435.6,0.0597488]
[1730848110419,0.07621652,2435.9,2435.7,0.7923]
[1730848114121,4.10494,2436.1,2435.7,0.7923]
[1730848114324,0.07625341,2435.8,2435.7,0.7923]
[1730848114827,0.0760815,2435.8,2435.7,0.7923]
[1730848115188,4.10494,2436.1,2435.7,0.7923]
[1730848115494,0.07605944,2435.8,2435.7,0.7923]
[1730848115694,4.10494,2436.1,2435.7,0.7923]
[1730848115925,0.07604176,2435.8,2435.7,0.7923]
[1730848116130,0.07606382,2435.8,2435.7,0.7923]
[1730848116631,0.07612981,2435.8,2435.7,0.7923]
[1730848116831,4.10512,2436.0,2435.7,0.7923]
[1730848117126,0.07612981,2435.8,2435.7,0.7923]
[1730848117623,0.07612108,2435.8,2435.7,0.7923]
[1730848117811,4.18154108,2435.8,2435.6,0.0597488]
[1730848118019,4.52374411,2435.7,2435.6,0.0597488]
[1730848118225,0.49427286,2435.7,2435.6,0.0597488]
[1730848118892,4.59986286,2435.7,2435.6,0.0597488]
[1730848120283,4.18170875,2435.7,2435.6,0.0597488]
[1730848121334,4.94900875,2435.7,2435.6,0.0597488]
[1730848121928,7.94900875,2435.7,2435.6,0.0597488]
[1730848124902,7.18170875,2435.7,2435.6,0.0597488]
[1730848125102,3.07611875,2435.7,2435.6,0.0597488]
[1730848125445,4.18170875,2435.7,2435.6,0.0597488]
[1730848125585,5.01042263,2435.7,2435.6,0.0597488]
[1730848126732,0.07611875,2435.7,2435.6,0.0597488]
[1730848127111,4.10534,2435.9,2435.6,0.0597488]
[1730848127311,0.07546005,2435.7,2435.6,0.0597488]
[1730848127508,4.10534,2435.9,2435.6,0.0597488]
[1730848128027,0.07559475,2435.8,2435.6,0.0597488]
[1730848132035,0.07559475,2435.8,2435.7,0.8213]
[1730848132238,0.07559475,2435.8,2435.6,0.0597488]
[1730848132561,0.07300486,2435.7,2435.6,0.0597488]
[1730848132722,4.10526,2435.9,2435.6,0.0597488]
[1730848132918,0.07307618,2435.8,2435.6,0.0597488]
[1730848134163,4.17851618,2435.8,2435.6,0.0597488]
[1730848134761,0.07307618,2435.8,2435.6,0.0597488]
[1730848136467,4.17851618,2435.8,2435.6,0.0597488]
[1730848137554,8.28406618,2435.8,2435.6,0.0597488]
[1730848138161,4.17851618,2435.8,2435.6,0.0597488]
[1730848140644,8.28401618,2435.8,2435.6,0.0597488]
[1730848141075,4.91159,2435.7,2435.6,0.0597488]
[1730848141429,4.98445081,2435.7,2435.6,0.0597488]
[1730848142083,12.98445081,2435.7,2435.6,0.0597488]
[1730848143476,0.07286081,2435.7,2435.6,0.0597488]
[1730848143674,4.17845081,2435.7,2435.6,0.0597488]
[1730848143881,4.10559,2435.7,2435.6,0.0597488]
[1730848144076,4.1783905,2435.7,2435.6,0.0597488]
[1730848144283,0.0728005,2435.7,2435.6,0.0597488]
[1730848144653,4.1055,2435.8,2435.6,0.0597488]
[1730848144969,0.0727728,2435.7,2435.6,0.0597488]
[1730848145176,4.1055,2435.8,2435.6,0.0597488]
[1730848145378,0.07279487,2435.7,2435.6,0.0597488]
[1730848145534,8.0,2436.0,2435.6,0.0597488]
[1730848145733,4.10554,2435.8,2435.6,0.0597488]
[1730848145962,0.07291756,2435.7,2435.6,0.0597488]
[1730848146158,4.10554,2435.8,2435.6,0.0597488]
[1730848146370,4.17852963,2435.7,2435.6,0.0597488]
[1730848147940,0.07293963,2435.7,2435.6,0.0597488]
[1730848148141,7.1051,2436.0,2435.6,0.0597488]
[1730848148376,4.10553,2435.8,2435.6,0.0597488]
[1730848148582,0.07297064,2435.7,2435.6,0.0597488]
[1730848148749,4.10527,2435.9,2435.6,0.0597488]
[1730848148953,0.0730612,2435.8,2435.6,0.0597488]
[1730848149152,4.1785612,2435.8,2435.6,0.0597488]
[1730848149354,8.2840912,2435.8,2435.6,0.0597488]
[1730848149541,4.10559,2435.7,2435.6,0.0597488]
[1730848149882,0.07285595,2435.7,2435.6,0.0597488]
[1730848150244,4.10559,2435.7,2435.6,0.0597488]
[1730848150443,4.17846364,2435.7,2435.6,0.0597488]
[1730848150891,5.81286,2435.7,2435.6,0.0597488]
[1730848151446,8.81286,2435.7,2435.6,0.0597488]
[1730848152246,13.81286,2435.7,2435.6,0.0597488]
[1730848152618,8.81286,2435.7,2435.6,0.0597488]
[1730848153041,7.17846364,2435.7,2435.6,0.0597488]
[1730848153442,0.07287364,2435.7,2435.6,0.0597488]
[1730848153863,7.10551,2435.8,2435.6,0.0597488]
[1730848154090,0.07262018,2435.7,2435.6,0.0597488]
[1730848154449,4.10559,2435.7,2435.6,0.0597488]
[1730848154761,4.17826744,2435.7,2435.6,0.0597488]
[1730848156493,5.80664518,2435.7,2435.6,0.0597488]
[1730848156790,4.17826744,2435.7,2435.6,0.0597488]
[1730848160808,4.93466744,2435.7,2435.6,0.0597488]
[1730848160965,9.93466744,2435.7,2435.6,0.0597488]
[1730848161297,4.93466744,2435.7,2435.6,0.0597488]
[1730848161688,9.93466744,2435.7,2435.6,0.0597488]
[1730848161902,6.63867618,2435.7,2435.6,0.0597488]
[1730848162404,0.07267744,2435.7,2435.6,0.0597488]
[1730848162561,7.10542,2435.8,2435.6,0.0597488]
[1730848162562,4.10542,2435.8,2435.6,0.0597488]
[1730848162901,4.17836319,2435.7,2435.6,0.0597488]
[1730848163761,0.07277319,2435.7,2435.6,0.0597488]
[1730848163989,4.10543,2435.8,2435.6,0.0597488]
[1730848164297,0.07276081,2435.7,2435.6,0.0597488]
[1730848164656,4.10543,2435.8,2435.6,0.0597488]
[1730848164861,0.07266776,2435.7,2435.6,0.0597488]
[1730848165405,0.07279069,2435.7,2435.6,0.0597488]
[1730848165604,4.10527,2435.9,2435.6,0.0597488]
[1730848165809,0.07281276,2435.7,2435.6,0.0597488]
[1730848165993,4.10527,2435.9,2435.6,0.0597488]
[1730848166201,0.07281276,2435.7,2435.6,0.0597488]
[1730848166518,4.10486,2436.2,2435.6,0.55748368]
[1730848166669,4.10486,2436.2,2435.6,0.0597488]
[1730848166670,0.07283482,2435.7,2435.6,0.0597488]
[1730848166864,4.10544,2435.8,2435.6,0.0597488]
[1730848167163,0.07289188,2435.7,2435.6,0.0597488]
[1730848167510,4.10559,2435.7,2435.6,0.0597488]
[1730848167730,0.7564,2435.9,2435.6,0.0597488]
[1730848168021,4.10559,2435.7,2435.6,0.0597488]
[1730848168527,4.17840355,2435.7,2435.6,0.0597488]
[1730848169994,12.5120902,2435.7,2435.6,0.0597488]
[1730848171227,12.5120902,2435.7,2435.6,8.8e-06]
[1730848171431,12.5120902,2435.7,2434.4,0.90514135]
[1730848171432,4.10677,2435.0,2434.4,0.8572488]
[1730848171586,4.10677,2435.0,2434.5,4.46785703]
[1730848171781,4.10677,2435.0,2434.6,0.36026703]
[1730848172093,0.07171438,2434.9,2434.8,0.7975]
[1730848172594,0.07175633,2434.9,2434.8,0.7975]
[1730848172787,4.10647,2435.2,2434.8,1.15760113]
[1730848173126,0.07175633,2434.9,2434.8,1.15759409]
[1730848173326,8.21304,2435.2,2434.8,0.7975]
[1730848173637,9.411684,2435.2,2434.8,0.7975]
[1730848173821,0.07168267,2435.1,2434.8,4.9045]
[1730848174002,4.10627,2435.3,2434.8,4.9045]
[1730848174003,4.10631,2435.3,2434.8,4.9045]
[1730848174207,0.0715811,2435.0,2434.8,4.9045]
[1730848174388,4.10631,2435.3,2434.8,4.9045]
[1730848174589,4.10621,2435.4,2434.9,4.10693]
[1730848174837,4.10621,2435.4,2434.9,5.01628609]
[1730848174985,4.10621,2435.4,2434.9,0.90935609]
[1730848175185,3.0,2435.5,2435.1,0.7975]
[1730848175694,0.07211652,2435.4,2435.1,0.7975]
[1730848175895,0.07211652,2435.4,2435.1,4.90396]
[1730848176128,0.07211652,2435.4,2435.2,0.901062]
[1730848176490,4.10587,2435.6,2435.2,0.901062]
[1730848177027,0.07235191,2435.5,2435.2,0.901062]
[1730848177197,0.07235191,2435.5,2435.3,0.7975]
[1730848177402,4.1056,2435.7,2435.3,0.7975]
[1730848177605,0.07225805,2435.4,2435.3,0.7975]
[1730848177821,4.1055,2435.8,2435.3,1.3779872]
[1730848178017,0.07229134,2435.4,2435.3,4.90376]
[1730848178224,8.21104,2435.8,2435.3,4.90376]
[1730848178491,0.07232653,2435.4,2435.3,0.7975]
[1730848178729,4.1055,2435.8,2435.3,4.90377]
[1730848178907,0.07232653,2435.4,2435.3,4.90377]
[1730848179107,8.21101,2435.8,2435.3,5.804783]
[1730848179326,0.07239673,2435.4,2435.3,4.90377]
[1730848179527,8.21101,2435.8,2435.3,4.90377]
[1730848179739,0.07242317,2435.4,2435.3,4.90377]
[1730848179906,3.0,2436.1,2435.6,4.90314]
[1730848180236,4.10484,2436.2,2435.7,4.10557]
[1730848180909,0.7734,2436.4,2435.9,0.7975]
[1730848181107,4.1047,2436.3,2435.9,0.7975]
[1730848181835,7.26690689,2436.1,2435.5,4.90333]
[1730848182130,4.10513,2436.0,2435.5,4.90333]
[1730848182421,4.10534,2435.9,2435.5,0.7975]
[1730848182587,0.487874,2435.8,2435.5,0.7975]